[Event "Norwegian Championship 2022"]
[Site "Kongsvinger, Norway"]
[Date "2022.07.10"]
[Round "3"]
[White "Hauge, Lars Oskar"]
[Black "Østmoe, Geir Sune Tallaksen"]
[Result "1/2-1/2"]
[Board "2"]
[TimeControl "40/5400+30:1800+30"]
[WhiteTitle "GM"]
[BlackTitle "IM"]
[WhiteFideId "1509276"]
[BlackFideId "1502778"]
[WhiteElo "2526"]
[BlackElo "2483"]

1. e4 {[%clk 01:30:58]} c6 {[%clk 01:30:45]} {[%emt 00:00:16]} 2. Nf3 {[%clk
01:31:01]} {[%emt 00:00:27]} d5 {[%clk 01:31:08]} {[%emt 00:00:06]} 3. Nc3
{[%clk 01:31:26]} {[%emt 00:00:06]} Bg4 {[%clk 01:30:09]} {[%emt 00:01:29]} 4.
h3 {[%clk 01:31:16]} {[%emt 00:00:40]} Bxf3 {[%clk 01:30:31]} {[%emt 00:00:09]}
5. Qxf3 {[%clk 01:31:36]} {[%emt 00:00:09]} e6 {[%clk 01:30:26]} {[%emt
00:00:35]} 6. Be2 {[%clk 01:31:15]} {[%emt 00:00:51]} Nf6 {[%clk 01:26:37]}
{[%emt 00:04:20]} 7. O-O {[%clk 01:31:22]} {[%emt 00:00:22]} dxe4 {[%clk
01:22:55]} {[%emt 00:04:12]} 8. Nxe4 {[%clk 01:31:34]} {[%emt 00:00:18]} Nxe4
{[%clk 01:23:06]} {[%emt 00:00:19]} 9. Qxe4 {[%clk 01:31:49]} {[%emt 00:00:15]}
Nd7 {[%clk 01:23:13]} {[%emt 00:00:23]} 10. d4 {[%clk 01:30:20]} {[%emt
00:01:58]} Nf6 {[%clk 01:22:09]} {[%emt 00:01:34]} 11. Qe3 {[%clk 01:29:25]}
{[%emt 00:01:25]} Bd6 {[%clk 01:17:50]} {[%emt 00:04:50]} 12. g3 {[%clk
01:29:07]} {[%emt 00:00:47]} O-O {[%clk 01:15:56]} {[%emt 00:02:24]} 13. Qf3
{[%clk 01:15:57]} {[%emt 00:13:39]} Qe7 {[%clk 01:05:27]} {[%emt 00:11:00]} 14.
Re1 {[%clk 01:11:47]} {[%emt 00:04:40]} Rad8 {[%clk 01:02:06]} {[%emt
00:03:51]} 15. Bf1 {[%clk 01:06:29]} {[%emt 00:05:48]} Rfe8 {[%clk 00:51:50]}
{[%emt 00:10:47]} 16. c3 {[%clk 01:05:56]} {[%emt 00:01:03]} Nd5 {[%clk
00:47:32]} {[%emt 00:04:48]} 17. Bd3 {[%clk 01:02:49]} {[%emt 00:03:37]} Qf8
{[%clk 00:39:06]} {[%emt 00:08:57]} 18. Bd2 {[%clk 00:56:36]} {[%emt 00:06:43]}
g6 {[%clk 00:37:20]} {[%emt 00:02:16]} 19. Rad1 {[%clk 00:56:25]} {[%emt
00:00:40]} e5 {[%clk 00:33:01]} {[%emt 00:04:50]} 20. dxe5 {[%clk 00:50:25]}
{[%emt 00:06:30]} Bxe5 {[%clk 00:32:48]} {[%emt 00:00:43]} 21. Bc4 {[%clk
00:49:13]} {[%emt 00:01:42]} Nb6 {[%clk 00:20:01]} {[%emt 00:13:17]} 22. Bb3
{[%clk 00:47:15]} {[%emt 00:02:28]} Bg7 {[%clk 00:20:02]} {[%emt 00:00:29]} 23.
Be3 {[%clk 00:46:01]} {[%emt 00:01:43]} Rxd1 {[%clk 00:18:38]} {[%emt
00:01:55]} 24. Rxd1 {[%clk 00:46:20]} {[%emt 00:00:11]} Re5 {[%clk 00:18:03]}
{[%emt 00:01:05]} 25. Rd3 {[%clk 00:28:58]} {[%emt 00:17:51]} Qe7 {[%clk
00:17:05]} {[%emt 00:01:28]} 26. Qd1 {[%clk 00:28:25]} {[%emt 00:01:03]} h5
{[%clk 00:16:40]} {[%emt 00:00:56]} 27. Rd8+ {[%clk 00:28:34]} {[%emt
00:00:21]} Kh7 {[%clk 00:17:00]} {[%emt 00:00:10]} 28. Qd6 {[%clk 00:20:48]}
{[%emt 00:08:15]} Rxe3 {[%clk 00:11:43]} {[%emt 00:05:47]} 29. fxe3 {[%clk
00:21:05]} {[%emt 00:00:14]} Qxe3+ {[%clk 00:12:09]} {[%emt 00:00:04]} 30. Kf1
{[%clk 00:20:10]} {[%emt 00:01:25]} Nd5 {[%clk 00:11:05]} {[%emt 00:01:34]} 31.
Bxd5 {[%clk 00:20:06]} {[%emt 00:00:34]} Qd3+ {[%clk 00:10:58]} {[%emt
00:00:37]} 32. Kg2 {[%clk 00:16:39]} {[%emt 00:03:56]} Qe2+ {[%clk 00:10:57]}
{[%emt 00:00:30]} 33. Kg1 {[%clk 00:16:03]} {[%emt 00:01:06]} Qe1+ {[%clk
00:10:27]} {[%emt 00:01:00]} 34. Kg2 {[%clk 00:16:29]} {[%emt 00:00:04]} Qe2+
{[%clk 00:10:54]} {[%emt 00:00:03]} 1/2-1/2

[Event "Norwegian Championship 2022"]
[Site "Kongsvinger, Norway"]
[Date "2022.07.10"]
[Round "3"]
[White "Djurhuus, Rune"]
[Black "Elsness, Frode"]
[Result "0-1"]
[Board "3"]
[TimeControl "40/5400+30:1800+30"]
[WhiteTitle "GM"]
[BlackTitle "IM"]
[WhiteFideId "1500082"]
[BlackFideId "1501100"]
[WhiteElo "2407"]
[BlackElo "2464"]

1. Nf3 {[%clk 01:30:58]} d5 {[%clk 01:26:57]} {[%emt 00:04:03]} 2. g3 {[%clk
01:30:30]} {[%emt 00:00:59]} c5 {[%clk 01:27:07]} {[%emt 00:00:19]} 3. c4
{[%clk 01:29:47]} {[%emt 00:01:13]} dxc4 {[%clk 01:25:05]} {[%emt 00:02:32]} 4.
Na3 {[%clk 01:27:33]} {[%emt 00:02:44]} Nc6 {[%clk 01:23:41]} {[%emt 00:01:55]}
5. Nxc4 {[%clk 01:26:28]} {[%emt 00:01:35]} f6 {[%clk 01:18:33]} {[%emt
00:05:37]} 6. Bg2 {[%clk 01:23:57]} {[%emt 00:03:01]} e5 {[%clk 01:17:15]}
{[%emt 00:01:48]} 7. d3 {[%clk 01:24:00]} {[%emt 00:00:27]} Be6 {[%clk
01:14:03]} {[%emt 00:03:42]} 8. O-O {[%clk 01:15:11]} {[%emt 00:09:19]} Nge7
{[%clk 01:12:24]} {[%emt 00:02:09]} 9. b3 {[%clk 01:13:36]} {[%emt 00:02:06]}
Qd7 {[%clk 01:03:59]} {[%emt 00:08:55]} 10. Bb2 {[%clk 01:11:04]} {[%emt
00:03:01]} Rd8 {[%clk 00:59:07]} {[%emt 00:05:22]} 11. a3 {[%clk 01:09:28]}
{[%emt 00:02:06]} Nd5 {[%clk 00:54:19]} {[%emt 00:05:18]} 12. e3 {[%clk
01:02:15]} {[%emt 00:07:43]} Be7 {[%clk 00:49:07]} {[%emt 00:05:41]} 13. d4
{[%clk 00:53:15]} {[%emt 00:09:30]} cxd4 {[%clk 00:44:11]} {[%emt 00:05:27]} 14.
exd4 {[%clk 00:53:39]} {[%emt 00:00:07]} e4 {[%clk 00:43:52]} {[%emt 00:00:48]}
15. Nfd2 {[%clk 00:50:45]} {[%emt 00:03:23]} f5 {[%clk 00:43:06]} {[%emt
00:01:16]} 16. Qe2 {[%clk 00:49:58]} {[%emt 00:01:17]} O-O {[%clk 00:34:01]}
{[%emt 00:09:36]} 17. Rad1 {[%clk 00:49:39]} {[%emt 00:00:50]} Nc7 {[%clk
00:25:06]} {[%emt 00:09:24]} 18. Rfe1 {[%clk 00:40:19]} {[%emt 00:09:51]} Bf6
{[%clk 00:16:35]} {[%emt 00:09:00]} 19. d5 {[%clk 00:18:11]} {[%emt 00:22:38]}
Nxd5 {[%clk 00:16:23]} {[%emt 00:00:43]} 20. Bxf6 {[%clk 00:12:26]} {[%emt
00:06:15]} Rxf6 {[%clk 00:16:45]} {[%emt 00:00:07]} 21. Nb1 {[%clk 00:12:49]}
{[%emt 00:00:06]} Qc7 {[%clk 00:12:54]} {[%emt 00:04:20]} 22. f3 {[%clk
00:12:46]} {[%emt 00:00:35]} exf3 {[%clk 00:09:05]} {[%emt 00:04:19]} 23. Qxf3
{[%clk 00:09:23]} {[%emt 00:03:52]} Bf7 {[%clk 00:08:03]} {[%emt 00:01:32]} 24.
Rd3 {[%clk 00:07:57]} {[%emt 00:01:56]} Nb6 {[%clk 00:07:21]} {[%emt 00:01:12]}
25. Rxd8+ {[%clk 00:06:30]} {[%emt 00:01:57]} Qxd8 {[%clk 00:07:42]} {[%emt
00:00:10]} 26. Rd1 {[%clk 00:05:35]} {[%emt 00:01:23]} Qc7 {[%clk 00:07:25]}
{[%emt 00:00:48]} 27. Qd3 {[%clk 00:05:26]} {[%emt 00:00:39]} Bxc4 {[%clk
00:04:20]} {[%emt 00:03:35]} 28. bxc4 {[%clk 00:05:51]} {[%emt 00:00:05]} Ne5
{[%clk 00:04:09]} {[%emt 00:00:40]} 29. Qd8+ {[%clk 00:05:03]} {[%emt
00:01:18]} Qxd8 {[%clk 00:04:37]} {[%emt 00:00:02]} 30. Rxd8+ {[%clk 00:05:26]}
{[%emt 00:00:07]} Rf8 {[%clk 00:03:44]} {[%emt 00:01:23]} 31. Rxf8+ {[%clk
00:04:55]} {[%emt 00:01:01]} Kxf8 {[%clk 00:04:13]} {[%emt 00:00:01]} 32. c5
{[%clk 00:04:33]} {[%emt 00:00:51]} Nbd7 {[%clk 00:04:40]} {[%emt 00:00:03]} 33.
Bxb7 {[%clk 00:04:52]} {[%emt 00:00:11]} Nxc5 {[%clk 00:05:08]} {[%emt
00:00:02]} 34. Bd5 {[%clk 00:04:40]} {[%emt 00:00:40]} Ke7 {[%clk 00:05:04]}
{[%emt 00:00:37]} 35. Nc3 {[%clk 00:04:46]} {[%emt 00:00:24]} h6 {[%clk
00:04:27]} {[%emt 00:01:07]} 36. h3 {[%clk 00:04:52]} {[%emt 00:00:24]} Kd6
{[%clk 00:04:26]} {[%emt 00:00:32]} 37. Bg8 {[%clk 00:04:11]} {[%emt 00:00:58]}
Nc6 {[%clk 00:04:10]} {[%emt 00:00:56]} 38. Kf2 {[%clk 00:02:44]} {[%emt
00:01:59]} Ke5 {[%clk 00:04:30]} {[%emt 00:00:11]} 39. Ke3 {[%clk 00:03:03]}
{[%emt 00:00:09]} Nd4 {[%clk 00:04:26]} {[%emt 00:00:36]} 40. a4 {[%clk
00:32:03]} {[%emt 00:01:29]} Ne4 {[%clk 00:30:55]} {[%emt 00:03:59]} 41. Nxe4
{[%clk 00:28:04]} {[%emt 00:04:31]} fxe4 {[%clk 00:31:24]} {[%emt 00:00:02]} 42.
Bc4 {[%clk 00:22:41]} {[%emt 00:05:52]} Nf5+ {[%clk 00:30:50]} {[%emt
00:01:04]} 43. Kf2 {[%clk 00:23:08]} {[%emt 00:00:02]} a5 {[%clk 00:29:52]}
{[%emt 00:01:29]} 44. Bb5 {[%clk 00:22:00]} {[%emt 00:01:38]} Kd4 {[%clk
00:27:46]} {[%emt 00:02:36]} 45. Ba6 {[%clk 00:20:28]} {[%emt 00:02:02]} Ne3
{[%clk 00:25:51]} {[%emt 00:02:23]} 0-1

[Event "Norwegian Championship 2022"]
[Site "Kongsvinger, Norway"]
[Date "2022.07.10"]
[Round "3"]
[White "Abdrlauf, Elham"]
[Black "Urkedal, Frode Olav Olsen"]
[Result "1/2-1/2"]
[Board "4"]
[TimeControl "40/5400+30:1800+30"]
[WhiteTitle "FM"]
[BlackTitle "GM"]
[WhiteFideId "1533533"]
[BlackFideId "1506102"]
[WhiteElo "2466"]
[BlackElo "2555"]

1. Nf3 {[%clk 01:30:57]} {[%emt 00:00:02]} d5 {[%clk 01:30:41]} {[%emt
00:00:19]} 2. g3 {[%clk 01:31:21]} {[%emt 00:00:06]} g6 {[%clk 01:30:49]}
{[%emt 00:00:22]} 3. Bg2 {[%clk 01:31:26]} {[%emt 00:00:24]} Bg7 {[%clk
01:31:12]} {[%emt 00:00:07]} 4. O-O {[%clk 01:31:51]} {[%emt 00:00:06]} e5
{[%clk 01:31:17]} {[%emt 00:00:25]} 5. d3 {[%clk 01:31:00]} {[%emt 00:01:21]}
Nc6 {[%clk 01:30:38]} {[%emt 00:01:10]} 6. c4 {[%clk 01:28:54]} {[%emt
00:02:35]} dxc4 {[%clk 01:29:37]} {[%emt 00:01:32]} 7. dxc4 {[%clk 01:28:29]}
{[%emt 00:00:56]} Qxd1 {[%clk 01:25:41]} {[%emt 00:04:25]} 8. Rxd1 {[%clk
01:28:55]} {[%emt 00:00:04]} e4 {[%clk 01:23:51]} {[%emt 00:02:20]} 9. Ng5
{[%clk 01:23:15]} {[%emt 00:06:09]} f5 {[%clk 01:18:34]} {[%emt 00:05:48]} 10.
Nc3 {[%clk 01:22:12]} {[%emt 00:01:33]} Bxc3 {[%clk 01:15:59]} {[%emt
00:03:04]} 11. bxc3 {[%clk 01:22:32]} {[%emt 00:00:10]} h6 {[%clk 01:14:03]}
{[%emt 00:02:26]} 12. Nh3 {[%clk 01:22:55]} {[%emt 00:00:07]} g5 {[%clk
01:10:41]} {[%emt 00:03:52]} 13. f3 {[%clk 01:18:37]} {[%emt 00:04:48]} Nf6
{[%clk 01:05:53]} {[%emt 00:05:18]} 14. Nf2 {[%clk 01:09:25]} {[%emt 00:09:41]}
Bd7 {[%clk 00:55:23]} {[%emt 00:11:00]} 15. fxe4 {[%clk 01:01:56]} {[%emt
00:07:59]} Nxe4 {[%clk 00:55:39]} {[%emt 00:00:14]} 16. Nxe4 {[%clk 00:59:32]}
{[%emt 00:02:54]} fxe4 {[%clk 00:55:53]} {[%emt 00:00:17]} 17. Be3 {[%clk
00:46:35]} {[%emt 00:13:26]} O-O-O {[%clk 00:53:23]} {[%emt 00:03:00]} 18. Bd4
{[%clk 00:45:30]} {[%emt 00:01:36]} Nxd4 {[%clk 00:49:05]} {[%emt 00:04:48]} 19.
Rxd4 {[%clk 00:40:38]} {[%emt 00:05:21]} Bc6 {[%clk 00:42:44]} {[%emt
00:06:51]} 20. Rf1 {[%clk 00:31:06]} {[%emt 00:10:03]} Rde8 {[%clk 00:20:41]}
{[%emt 00:22:33]} 21. Rf6 {[%clk 00:22:39]} {[%emt 00:08:57]} Kb8 {[%clk
00:20:01]} {[%emt 00:01:10]} 22. Bh3 {[%clk 00:20:26]} {[%emt 00:02:43]} a6
{[%clk 00:18:36]} {[%emt 00:01:55]} 23. Be6 {[%clk 00:18:51]} {[%emt 00:02:04]}
Ref8 {[%clk 00:10:15]} {[%emt 00:08:52]} 24. Rxf8+ {[%clk 00:17:47]} {[%emt
00:01:35]} Rxf8 {[%clk 00:10:41]} {[%emt 00:00:02]} 25. Bd5 {[%clk 00:17:45]}
{[%emt 00:00:33]} Bxd5 {[%clk 00:08:35]} {[%emt 00:02:37]} 26. cxd5 {[%clk
00:18:09]} {[%emt 00:00:06]} e3 {[%clk 00:06:37]} {[%emt 00:02:28]} 27. Re4
{[%clk 00:17:20]} {[%emt 00:01:19]} Rd8 {[%clk 00:05:38]} {[%emt 00:01:29]} 28.
c4 {[%clk 00:16:27]} {[%emt 00:01:23]} b5 {[%clk 00:06:02]} {[%emt 00:00:06]}
29. cxb5 {[%clk 00:13:26]} {[%emt 00:03:31]} axb5 {[%clk 00:06:30]} {[%emt
00:00:02]} 30. Re5 {[%clk 00:12:47]} {[%emt 00:01:10]} Kb7 {[%clk 00:06:41]}
{[%emt 00:00:18]} 31. Kg2 {[%clk 00:05:41]} {[%emt 00:07:36]} Ra8 {[%clk
00:03:48]} {[%emt 00:03:23]} 32. d6 {[%clk 00:05:13]} {[%emt 00:00:58]} cxd6
{[%clk 00:00:36]} {[%emt 00:03:41]} 33. Rxb5+ {[%clk 00:05:35]} {[%emt
00:00:07]} Kc6 {[%clk 00:01:02]} {[%emt 00:00:04]} 34. Rb3 {[%clk 00:04:22]}
{[%emt 00:01:43]} Rxa2 {[%clk 00:01:24]} {[%emt 00:00:08]} 35. Kf3 {[%clk
00:04:18]} {[%emt 00:00:35]} h5 {[%clk 00:00:37]} {[%emt 00:01:17]} 36. Rb8
{[%clk 00:03:26]} {[%emt 00:01:22]} Ra5 {[%clk 00:00:43]} {[%emt 00:00:24]} 37.
h3 {[%clk 00:02:24]} {[%emt 00:01:32]} Rf5+ {[%clk 00:00:35]} {[%emt 00:00:38]}
38. Kxe3 {[%clk 00:02:49]} {[%emt 00:00:05]} Re5+ {[%clk 00:01:00]} {[%emt
00:00:05]} 1/2-1/2

[Event "Norwegian Championship 2022"]
[Site "Kongsvinger, Norway"]
[Date "2022.07.10"]
[Round "3"]
[White "Vestby-Ellingsen, Mads"]
[Black "Kaasen, Tor Fredrik"]
[Result "0-1"]
[Board "5"]
[TimeControl "40/5400+30:1800+30"]
[WhiteTitle "IM"]
[BlackTitle "IM"]
[WhiteFideId "1520857"]
[BlackFideId "1516647"]
[WhiteElo "2351"]
[BlackElo "2433"]

1. d4 {[%clk 01:28:56]} {[%emt 00:02:01]} Nf6 {[%clk 01:30:45]} {[%emt
00:00:16]} 2. Nc3 {[%clk 01:29:05]} {[%emt 00:00:21]} d5 {[%clk 01:30:08]}
{[%emt 00:01:08]} 3. Bf4 {[%clk 01:29:19]} {[%emt 00:00:16]} a6 {[%clk
01:25:44]} {[%emt 00:04:55]} 4. e3 {[%clk 01:29:23]} {[%emt 00:00:25]} b5
{[%clk 01:24:36]} {[%emt 00:01:40]} 5. h4 {[%clk 01:28:47]} {[%emt 00:01:04]}
e6 {[%clk 01:20:40]} {[%emt 00:04:27]} 6. g4 {[%clk 01:15:59]} {[%emt
00:13:16]} Bd6 {[%clk 01:16:52]} {[%emt 00:04:17]} 7. Qf3 {[%clk 01:10:37]}
{[%emt 00:05:54]} Bb7 {[%clk 01:10:09]} {[%emt 00:07:12]} 8. g5 {[%clk
00:58:12]} {[%emt 00:12:55]} Nfd7 {[%clk 01:06:22]} {[%emt 00:04:15]} 9. Qg3
{[%clk 00:53:23]} {[%emt 00:05:22]} Bxf4 {[%clk 00:57:43]} {[%emt 00:09:09]} 10.
Qxf4 {[%clk 00:53:40]} {[%emt 00:00:12]} b4 {[%clk 00:56:57]} {[%emt 00:01:17]}
11. Nce2 {[%clk 00:53:06]} {[%emt 00:01:03]} c5 {[%clk 00:56:02]} {[%emt
00:01:24]} 12. O-O-O {[%clk 00:52:37]} {[%emt 00:01:00]} Nc6 {[%clk 00:48:48]}
{[%emt 00:07:45]} 13. Nf3 {[%clk 00:42:21]} {[%emt 00:10:46]} c4 {[%clk
00:42:15]} {[%emt 00:07:02]} 14. h5 {[%clk 00:38:39]} {[%emt 00:04:13]} Qa5
{[%clk 00:32:00]} {[%emt 00:10:45]} 15. Kb1 {[%clk 00:38:50]} {[%emt 00:00:19]}
c3 {[%clk 00:31:44]} {[%emt 00:00:47]} 16. Bg2 {[%clk 00:23:32]} {[%emt
00:15:48]} O-O {[%clk 00:24:26]} {[%emt 00:07:48]} 17. g6 {[%clk 00:21:30]}
{[%emt 00:02:32]} h6 {[%clk 00:24:16]} {[%emt 00:00:40]} 18. Qd6 {[%clk
00:20:52]} {[%emt 00:01:07]} Nb6 {[%clk 00:16:27]} {[%emt 00:08:20]} 19. gxf7+
{[%clk 00:19:42]} {[%emt 00:01:40]} Rxf7 {[%clk 00:15:54]} {[%emt 00:01:03]} 20.
Qxe6 {[%clk 00:06:01]} {[%emt 00:14:11]} Nc4 {[%clk 00:10:45]} {[%emt
00:05:40]} 21. Nc1 {[%clk 00:06:23]} {[%emt 00:00:08]} Na3+ {[%clk 00:04:43]}
{[%emt 00:06:33]} 22. bxa3 {[%clk 00:06:45]} {[%emt 00:00:08]} Qxa3 {[%clk
00:04:47]} {[%emt 00:00:27]} 23. Nd3 {[%clk 00:07:06]} {[%emt 00:00:08]} b3
{[%clk 00:04:54]} {[%emt 00:00:23]} 24. cxb3 {[%clk 00:05:14]} {[%emt
00:02:21]} Nb4 {[%clk 00:03:36]} {[%emt 00:01:48]} 25. Rd2 {[%clk 00:05:33]}
{[%emt 00:00:11]} Bc8 {[%clk 00:03:15]} {[%emt 00:00:51]} 26. Qxf7+ {[%clk
00:02:53]} {[%emt 00:03:10]} Kxf7 {[%clk 00:03:41]} {[%emt 00:00:05]} 27. Nfe5+
{[%clk 00:03:06]} {[%emt 00:00:17]} Ke8 {[%clk 00:03:40]} {[%emt 00:00:31]} 28.
Nxb4 {[%clk 00:02:24]} {[%emt 00:01:11]} cxd2 {[%clk 00:03:02]} {[%emt
00:01:08]} 29. Bxd5 {[%clk 00:00:32]} {[%emt 00:02:23]} Bf5+ {[%clk 00:02:15]}
{[%emt 00:01:17]} 30. Nbd3 {[%clk 00:00:44]} {[%emt 00:00:17]} Rc8 {[%clk
00:01:55]} {[%emt 00:00:51]} 31. e4 {[%clk 00:01:08]} {[%emt 00:00:05]} Qa5
{[%clk 00:01:46]} {[%emt 00:00:40]} 32. Nc4 {[%clk 00:00:35]} {[%emt 00:01:03]}
Qc3 {[%clk 00:01:26]} {[%emt 00:00:49]} 33. Ndb2 {[%clk 00:00:32]} {[%emt
00:00:33]} Rxc4 {[%clk 00:01:28]} {[%emt 00:00:29]} 34. bxc4 {[%clk 00:00:31]}
{[%emt 00:00:31]} Bg4 {[%clk 00:01:51]} {[%emt 00:00:06]} 35. Rf1 {[%clk
00:00:31]} {[%emt 00:00:31]} Be2 {[%clk 00:01:57]} {[%emt 00:00:24]} 36. Rg1
{[%clk 00:00:55]} {[%emt 00:00:05]} Bd3+ {[%clk 00:02:13]} {[%emt 00:00:12]} 37.
Nxd3 {[%clk 00:01:17]} {[%emt 00:00:09]} Qxd3+ {[%clk 00:02:38]} {[%emt
00:00:06]} 0-1

[Event "Norwegian Championship 2022"]
[Site "Kongsvinger, Norway"]
[Date "2022.07.10"]
[Round "3"]
[White " Østenstad, Berge"]
[Black "Tallaksen, Levi André"]
[Result "1/2-1/2"]
[Board "6"]
[TimeControl "40/5400+30:1800+30"]
[WhiteTitle "GM"]
[BlackTitle "FM"]
[WhiteFideId "1500058"]
[BlackFideId "1505785"]
[WhiteElo "2451"]
[BlackElo "2341"]

1. Nf3 {[%clk 01:30:56]} {[%emt 00:00:04]} Nf6 {[%clk 01:30:48]} {[%emt
00:00:12]} 2. c4 {[%clk 01:31:21]} {[%emt 00:00:04]} e6 {[%clk 01:31:08]}
{[%emt 00:00:10]} 3. Nc3 {[%clk 01:31:45]} {[%emt 00:00:06]} d5 {[%clk
01:31:29]} {[%emt 00:00:10]} 4. d4 {[%clk 01:25:25]} {[%emt 00:06:50]} c6
{[%clk 01:27:15]} {[%emt 00:04:44]} 5. e3 {[%clk 01:25:14]} {[%emt 00:00:41]}
Nbd7 {[%clk 01:27:07]} {[%emt 00:00:38]} 6. Be2 {[%clk 01:25:00]} {[%emt
00:00:43]} Bd6 {[%clk 01:25:31]} {[%emt 00:02:05]} 7. O-O {[%clk 01:22:41]}
{[%emt 00:02:49]} O-O {[%clk 01:25:48]} {[%emt 00:00:13]} 8. b3 {[%clk
01:22:53]} {[%emt 00:00:18]} dxc4 {[%clk 01:22:07]} {[%emt 00:04:12]} 9. bxc4
{[%clk 01:21:26]} {[%emt 00:01:58]} e5 {[%clk 01:22:28]} {[%emt 00:00:09]} 10.
a4 {[%clk 01:13:10]} {[%emt 00:08:46]} Re8 {[%clk 01:19:55]} {[%emt 00:03:02]}
11. Ba3 {[%clk 01:05:56]} {[%emt 00:07:44]} exd4 {[%clk 01:11:59]} {[%emt
00:08:26]} 12. exd4 {[%clk 01:04:29]} {[%emt 00:01:58]} Nf8 {[%clk 01:12:13]}
{[%emt 00:00:16]} 13. h3 {[%clk 00:43:15]} {[%emt 00:21:43]} Ng6 {[%clk
00:59:38]} {[%emt 00:13:05]} 14. Re1 {[%clk 00:41:59]} {[%emt 00:01:46]} Bf5
{[%clk 00:58:44]} {[%emt 00:01:24]} 15. Qb3 {[%clk 00:39:05]} {[%emt 00:03:25]}
Bxa3 {[%clk 00:50:41]} {[%emt 00:08:33]} 16. Qxa3 {[%clk 00:38:57]} {[%emt
00:00:39]} Qa5 {[%clk 00:51:02]} {[%emt 00:00:09]} 17. Bf1 {[%clk 00:37:33]}
{[%emt 00:01:54]} Rad8 {[%clk 00:50:18]} {[%emt 00:01:13]} 18. Rad1 {[%clk
00:32:38]} {[%emt 00:05:25]} Ne4 {[%clk 00:41:36]} {[%emt 00:09:12]} 19. Nxe4
{[%clk 00:21:46]} {[%emt 00:11:22]} Bxe4 {[%clk 00:35:03]} {[%emt 00:07:03]} 20.
Re3 {[%clk 00:21:45]} {[%emt 00:00:31]} Re6 {[%clk 00:30:43]} {[%emt 00:04:50]}
21. Qb3 {[%clk 00:19:46]} {[%emt 00:02:30]} Bxf3 {[%clk 00:20:34]} {[%emt
00:10:39]} 22. Rxf3 {[%clk 00:19:19]} {[%emt 00:00:57]} b6 {[%clk 00:20:47]}
{[%emt 00:00:18]} 23. g3 {[%clk 00:11:22]} {[%emt 00:08:27]} h6 {[%clk
00:17:20]} {[%emt 00:03:57]} 24. Rfd3 {[%clk 00:10:54]} {[%emt 00:00:58]} Qf5
{[%clk 00:16:16]} {[%emt 00:01:34]} 25. Bg2 {[%clk 00:09:49]} {[%emt 00:01:34]}
Re2 {[%clk 00:15:57]} {[%emt 00:00:49]} 26. Bf3 {[%clk 00:09:42]} {[%emt
00:00:38]} Re7 {[%clk 00:15:54]} {[%emt 00:00:32]} 27. Bxc6 {[%clk 00:07:36]}
{[%emt 00:02:36]} Qxh3 {[%clk 00:15:33]} {[%emt 00:00:51]} 28. Re3 {[%clk
00:07:40]} {[%emt 00:00:26]} h5 {[%clk 00:09:47]} {[%emt 00:06:17]} 29. Rde1
{[%clk 00:07:15]} {[%emt 00:00:55]} Rxe3 {[%clk 00:08:16]} {[%emt 00:02:02]} 30.
Qxe3 {[%clk 00:07:32]} {[%emt 00:00:12]} h4 {[%clk 00:08:14]} {[%emt 00:00:33]}
31. Bd5 {[%clk 00:06:50]} {[%emt 00:01:11]} Qd7 {[%clk 00:05:51]} {[%emt
00:02:54]} 32. Qg5 {[%clk 00:06:30]} {[%emt 00:00:49]} hxg3 {[%clk 00:05:35]}
{[%emt 00:00:46]} 33. fxg3 {[%clk 00:06:43]} {[%emt 00:00:17]} Qd6 {[%clk
00:05:37]} {[%emt 00:00:29]} 34. Kg2 {[%clk 00:03:43]} {[%emt 00:03:29]} Kf8
{[%clk 00:04:57]} {[%emt 00:01:11]} 35. Qf5 {[%clk 00:02:49]} {[%emt 00:01:23]}
Qf6 {[%clk 00:02:17]} {[%emt 00:03:10]} 36. Qe4 {[%clk 00:02:52]} {[%emt
00:00:27]} Qe7 {[%clk 00:01:11]} {[%emt 00:01:37]} 37. Qf3 {[%clk 00:02:52]}
{[%emt 00:00:30]} Qf6 {[%clk 00:01:23]} {[%emt 00:00:18]} 38. Qe4 {[%clk
00:02:57]} {[%emt 00:00:23]} Qe7 {[%clk 00:01:48]} {[%emt 00:00:07]} 39. Qf3
{[%clk 00:03:17]} {[%emt 00:00:10]} Qf6 {[%clk 00:02:10]} {[%emt 00:00:08]} 40.
Qa3+ {[%clk 00:30:54]} {[%emt 00:02:51]} Qd6 {[%clk 00:31:17]} {[%emt
00:01:25]} 41. Qxd6+ {[%clk 00:24:21]} {[%emt 00:07:03]} Rxd6 {[%clk 00:31:42]}
{[%emt 00:00:05]} 42. Rf1 {[%clk 00:24:19]} {[%emt 00:00:32]} f6 {[%clk
00:27:05]} {[%emt 00:05:07]} 43. Be4 {[%clk 00:19:57]} {[%emt 00:04:52]} Kf7
{[%clk 00:26:26]} {[%emt 00:01:09]} 44. Rd1 {[%clk 00:18:12]} {[%emt 00:02:14]}
Ne7 {[%clk 00:26:26]} {[%emt 00:00:31]} 45. d5 {[%clk 00:15:22]} {[%emt
00:03:21]} f5 {[%clk 00:25:42]} {[%emt 00:01:14]} 46. Bf3 {[%clk 00:15:38]}
{[%emt 00:00:13]} Kf6 {[%clk 00:24:01]} {[%emt 00:02:11]} 47. Re1 {[%clk
00:14:53]} {[%emt 00:01:15]} Ng6 {[%clk 00:23:33]} {[%emt 00:00:58]} 48. Re8
{[%clk 00:14:12]} {[%emt 00:01:10]} Ne5 {[%clk 00:23:55]} {[%emt 00:00:08]} 49.
Be2 {[%clk 00:14:35]} {[%emt 00:00:08]} a5 {[%clk 00:17:41]} {[%emt 00:06:45]}
50. Kf2 {[%clk 00:13:37]} {[%emt 00:01:27]} Nd7 {[%clk 00:17:30]} {[%emt
00:00:40]} 51. Bd3 {[%clk 00:10:37]} {[%emt 00:03:30]} Nc5 {[%clk 00:16:46]}
{[%emt 00:01:15]} 52. Bc2 {[%clk 00:11:02]} {[%emt 00:00:05]} Kf7 {[%clk
00:11:59]} {[%emt 00:05:17]} 53. Rc8 {[%clk 00:10:39]} {[%emt 00:00:54]} g6
{[%clk 00:12:21]} {[%emt 00:00:08]} 54. Ke3 {[%clk 00:10:17]} {[%emt 00:00:51]}
Kf6 {[%clk 00:12:39]} {[%emt 00:00:12]} 55. Kf4 {[%clk 00:09:35]} {[%emt
00:01:12]} Nd7 {[%clk 00:12:07]} {[%emt 00:01:03]} 56. Rd8 {[%clk 00:05:16]}
{[%emt 00:04:48]} Ke7 {[%clk 00:12:26]} {[%emt 00:00:11]} 57. Rh8 {[%clk
00:04:57]} {[%emt 00:00:49]} Kf6 {[%clk 00:12:36]} {[%emt 00:00:19]} 58. Rd8
{[%clk 00:03:18]} {[%emt 00:02:10]} Ke7 {[%clk 00:12:56]} {[%emt 00:00:10]} 59.
Rh8 {[%clk 00:02:59]} {[%emt 00:00:49]} 1/2-1/2